[Event "WSTCC-50 2024"]
[Site "Krakow"]
[Date "2024.07.06"]
[Round "5.8"]
[White "Noyce, Robert C"]
[Black "Scheckenbach, Franz"]
[Result "0-1"]
[ECO "A16"]
[WhiteElo "2088"]
[BlackElo "2072"]
[Annotator "NA RC"]
[PlyCount "92"]
[EventDate "2024.07.01"]
[EventType "team-tourn"]
[EventCountry "POL"]
[SourceTitle "playchess.com"]
[Source "ChessBase"]
[SourceQuality "1"]
[TimeControl "40/5400+30:1800+30"]

1. c4 {[%emt 0:00:01]} Nf6 {[%emt 0:00:17]} 2. Nc3 {[%emt 0:00:10]} g6 {[%emt 0:00:16]} 3. g3 {[%emt 0:00:11]} Bg7 {[%emt 0:00:08]} 4. Bg2 {[%emt 0:00:12]} O-O {[%emt 0:00:47]} 5. e4 {[%emt 0:00:17]} d6 {[%emt 0:00:11]} 6. Nge2 {[%emt 0:00:28]} c5 {[%emt 0:00:17]} 7. O-O {[%emt 0:00:38]} Nc6 {[%emt 0:00:24]} 8. h3 {[%emt 0:01:22]} Ne8 {[%emt 0:03:56]} 9. f4 {[%emt 0:02:33]} Nd4 {[%emt 0:03:16]} 10. d3 {[%emt 0:01:49]} Nc7 {[%emt 0:03:16]} 11. Nxd4 {[%emt 0:13:55]} cxd4 {[%emt 0:08:25]} 12. Ne2 {[%emt 0:01:09]} Rb8 {[%emt 0:08:00]} 13. b3 {[%emt 0:11:43]} b5 {[%emt 0:05:46]} 14. Bb2 {[%emt 0:02:21]} e5 {[%emt 0:02:12]} 15. f5 {[%emt 0:02:39]} bxc4 {[%emt 0:02:15]} 16. dxc4 {[%emt 0:00:15]} gxf5 {[%emt 0:01:21]} 17. exf5 {[%emt 0:00:26]} d5 {[%emt 0:00:57]} 18. Qd2 {[%emt 0:11:02]} dxc4 {[%emt 0:07:18]} 19. bxc4 {[%emt 0:00:48]} Ba6 {[%emt 0:03:38]} 20. Rfc1 {[%emt 0:07:27]} Qf6 {[%emt 0:01:52]} 21. g4 {[%emt 0:01:01]} Bh6 {[%emt 0:00:36]} 22. Qc2 {[%emt 0:00:46]} d3 {[%emt 0:03:40]} 23. Qxd3 {[%emt 0:00:24]} Rxb2 {[%emt 0:00:48]} 24. Rd1 {[%emt 0:01:23]} Qb6+ {[%emt 0:04:48]} 25. Kh1 {[%emt 0:03:43]} Bb7 {[%emt 0:06:58]} 26. g5 {[%emt 0:07:15]} Bxg2+ {[%emt 0:06:35]} 27. Kxg2 {[%emt 0:01:41]} Bxg5 {[%emt 0:01:33]} 28. Qg3 {[%emt 0:03:59]} Qc6+ {[%emt 0:08:17]} 29. Kf2 {[%emt 0:04:32]} Qb6+ {[%emt 0:04:34]} 30. Kf1 {[%emt 0:01:31]} Qh6 {[%emt 0:01:48]} 31. Rd3 {[%emt 0:02:13]} Re8 {[%emt 0:01:58]} 32. Rd7 {[%emt 0:00:46]} Na8 {[%emt 0:05:14]} 33. Rad1 {[%emt 0:00:20]} Qh4 {[%emt 0:00:13]} 34. Rd8 {[%emt 0:01:06]} Rb8 {[%emt 0:00:36]} 35. Rxb8 {[%emt 0:00:49]} Rxb8 {[%emt 0:00:07]} 36. Qxe5 {[%emt 0:00:16]} Qxh3+ {[%emt 0:00:12]} 37. Kf2 {[%emt 0:02:06]} Bh4+ {[%emt 0:01:38]} 38. Kg1 {[%emt 0:00:31]} Rf8 {[%emt 0:01:19]} 39. Rd4 {[%emt 0:10:43]} Bg5 {[%emt 0:01:23]} 40. Re4 {[%emt 0:01:54]} Rd8 {[%emt 0:02:16]} 41. Nd4 {[%emt 0:31:44]} h6 {[%emt 0:10:24]} 42. Kf2 {[%emt 0:00:00]} Bh4+ {[%emt 0:10:58]} 43. Ke2 {[%emt 0:00:00]} Qg2+ {[%emt 0:00:28]} 44. Kd3 {[%emt 0:00:00]} Bg5 {[%emt 0:02:37]} 45. Re2 {[%emt 0:00:00]} Qf3+ {[%emt 0:02:13]} 46. Kc2 {[%emt 0:00:00]} Rxd4 {[%emt 0:01:33]} 0-1

[Event "WSTCC-50 2024"]
[Site "Krakow"]
[Date "2024.07.06"]
[Round "5.8"]
[White "Serafim Junior, Arnor"]
[Black "O`Dwyer, Fergal"]
[Result "1/2-1/2"]
[ECO "D75"]
[WhiteElo "1770"]
[BlackElo "1935"]
[Annotator "NA RC"]
[PlyCount "40"]
[EventDate "2024.07.01"]
[EventType "team-tourn"]
[EventCountry "POL"]
[SourceTitle "playchess.com"]
[Source "ChessBase"]
[SourceQuality "1"]
[TimeControl "40/5400+30:1800+30"]

1. c4 {[%emt 0:00:08]} Nf6 {[%emt 0:00:32]} 2. Nf3 {[%emt 0:00:19]} g6 {[%emt 0:00:40]} 3. Nc3 {[%emt 0:00:19]} Bg7 {[%emt 0:11:33]} 4. g3 {[%emt 0:00:14]} O-O {[%emt 0:00:34]} 5. Bg2 {[%emt 0:00:18]} d5 {[%emt 0:04:15]} 6. cxd5 {[%emt 0:00:28]} Nxd5 {[%emt 0:00:23]} 7. d4 {[%emt 0:01:32]} c5 {[%emt 0:05:03]} 8. O-O {[%emt 0:02:38]} Nxc3 {[%emt 0:02:38]} 9. bxc3 {[%emt 0:00:10]} Nc6 {[%emt 0:03:22]} 10. e3 {[%emt 0:09:42]} Qa5 {[%emt 0:14:14]} 11. Qb3 {[%emt 0:16:10]} Rb8 {[%emt 0:05:49]} 12. Qa3 {[%emt 0:12:35]} Re8 {[%emt 0:15:33]} 13. Nd2 {[%emt 0:05:01]} Bd7 {[%emt 0:07:10]} 14. Nb3 {[%emt 0:14:25]} Qxa3 {[%emt 0:05:23]} 15. Bxa3 {[%emt 0:00:07]} cxd4 {[%emt 0:06:20]} 16. cxd4 {[%emt 0:04:00]} b6 {[%emt 0:01:00]} 17. Rac1 {[%emt 0:00:50]} Rbc8 {[%emt 0:01:14]} 18. Rc2 {[%emt 0:03:02]} Bf8 {[%emt 0:05:34]} 19. Rfc1 {[%emt 0:01:49]} Nb8 {[%emt 0:00:35]} 20. Kf1 {[%emt 0:11:51]} e6 {[%emt 0:01:19]} 1/2-1/2

[Event "WSTCC-50 2024"]
[Site "Krakow"]
[Date "2024.07.06"]
[Round "5.9"]
[White "Buckley, Graeme N"]
[Black "Sokolin, Leonid"]
[Result "1/2-1/2"]
[ECO "B31"]
[WhiteElo "2334"]
[BlackElo "2454"]
[Annotator "RC"]
[PlyCount "179"]
[EventDate "2024.07.01"]
[EventType "team-tourn"]
[EventCountry "POL"]
[SourceTitle "playchess.com"]
[Source "ChessBase"]
[SourceQuality "1"]
[TimeControl "40/5400+30:1800+30"]

1. e4 {[%emt 0:00:04]} c5 {[%emt 0:00:04]} 2. Nf3 {[%emt 0:00:07]} Nc6 {[%emt 0:00:03]} 3. Bb5 {[%emt 0:00:08]} g6 {[%emt 0:00:04]} 4. O-O {[%emt 0:00:10]} Bg7 {[%emt 0:00:05]} 5. Re1 {[%emt 0:00:21]} e5 {[%emt 0:00:07]} 6. Bxc6 {[%emt 0:00:18]} dxc6 {[%emt 0:00:21]} 7. d3 {[%emt 0:00:16]} Nh6 {[%emt 0:00:33]} 8. Nbd2 {[%emt 0:11:33]} f6 {[%emt 0:02:09]} 9. a4 {[%emt 0:07:42]} b6 {[%emt 0:02:24]} 10. a5 {[%emt 0:02:24]} Be6 {[%emt 0:00:53]} 11. axb6 {[%emt 0:03:19]} axb6 {[%emt 0:00:09]} 12. Rxa8 {[%emt 0:00:03]} Qxa8 {[%emt 0:00:04]} 13. Nc4 {[%emt 0:00:31]} b5 {[%emt 0:01:11]} 14. Ne3 {[%emt 0:10:14]} O-O {[%emt 0:00:46]} 15. Qd2 {[%emt 0:02:53]} Rd8 {[%emt 0:03:31]} 16. Qc3 {[%emt 0:09:29]} Bf8 {[%emt 0:08:09]} 17. b3 {[%emt 0:00:16]} Qa2 {[%emt 0:11:20]} 18. h3 {[%emt 0:08:20]} Ra8 {[%emt 0:08:11]} 19. Qd2 {[%emt 0:02:03]} Nf7 {[%emt 0:09:12]} 20. Qe2 {[%emt 0:01:05]} Be7 {[%emt 0:06:11]} 21. h4 {[%emt 0:02:39]} h5 {[%emt 0:08:38]} 22. Nh2 {[%emt 0:01:06]} Kg7 {[%emt 0:00:31]} 23. g3 {[%emt 0:01:53]} c4 {[%emt 0:07:33]} 24. dxc4 {[%emt 0:01:30]} Nd6 {[%emt 0:01:08]} 25. cxb5 {[%emt 0:03:11]} Nxb5 {[%emt 0:00:19]} 26. Nf3 {[%emt 0:02:06]} Rd8 {[%emt 0:01:36]} 27. Nc4 {[%emt 0:02:15]} Bg4 {[%emt 0:05:25]} 28. Bb2 {[%emt 0:06:10]} Nd4 {[%emt 0:02:51]} 29. Bxd4 {[%emt 0:00:29]} Rxd4 {[%emt 0:00:02]} 30. Kg2 {[%emt 0:02:37]} Rd7 {[%emt 0:07:31]} 31. Rd1 {[%emt 0:01:30]} Rxd1 {[%emt 0:01:10]} 32. Qxd1 {[%emt 0:00:02]} Qa7 {[%emt 0:00:17]} 33. Qd2 {[%emt 0:05:24]} Qb7 {[%emt 0:02:11]} 34. Qe3 {[%emt 0:01:17]} Qd7 {[%emt 0:01:34]} 35. Ncd2 {[%emt 0:09:55]} Bh3+ {[%emt 0:00:46]} 36. Kh2 {[%emt 0:00:28]} Be6 {[%emt 0:00:22]} 37. c3 {[%emt 0:01:45]} Qb7 {[%emt 0:00:46]} 38. b4 {[%emt 0:01:41]} Qa6 {[%emt 0:00:42]} 39. Kg2 {[%emt 0:01:48]} Qa3 {[%emt 0:02:21]} 40. Ne1 {[%emt 0:00:26]} c5 {[%emt 0:03:59]} 41. bxc5 {[%emt 0:07:52]} Bxc5 {[%emt 0:00:13]} 42. Qd3 {[%emt 0:00:42]} Qa7 {[%emt 0:01:02]} 43. Qe2 {[%emt 0:00:17]} Qa2 {[%emt 0:02:34]} 44. Nd3 {[%emt 0:01:14]} Bb6 {[%emt 0:04:46]} 45. Qd1 {[%emt 0:03:34]} Ba5 {[%emt 0:06:52]} 46. Qc1 {[%emt 0:00:10]} Bf7 {[%emt 0:00:17]} 47. Nb4 {[%emt 0:00:40]} Qa4 {[%emt 0:01:02]} 48. Qb2 {[%emt 0:03:31]} Qb5 {[%emt 0:03:30]} 49. Nf3 {[%emt 0:04:38]} Qc4 {[%emt 0:01:50]} 50. Qa3 {[%emt 0:01:08]} Bb6 {[%emt 0:00:32]} 51. Qa6 {[%emt 0:01:34]} Qc5 {[%emt 0:00:59]} 52. Nd3 {[%emt 0:00:06]} Qc7 {[%emt 0:01:43]} 53. Nb2 {[%emt 0:01:20]} Ba7 {[%emt 0:01:15]} 54. Qa3 {[%emt 0:02:38]} Bc5 {[%emt 0:00:37]} 55. Qa1 {[%emt 0:00:33]} Be7 {[%emt 0:02:10]} 56. Qe1 {[%emt 0:00:29]} Qb7 {[%emt 0:00:32]} 57. Nd3 {[%emt 0:00:36]} Bc4 {[%emt 0:01:18]} 58. Qe3 {[%emt 0:00:50]} Qa6 {[%emt 0:01:30]} 59. Nfe1 {[%emt 0:00:47]} Qa3 {[%emt 0:00:46]} 60. Qd2 {[%emt 0:00:53]} Qa8 {[%emt 0:00:32]} 61. f3 {[%emt 0:01:56]} Qd8 {[%emt 0:00:45]} 62. Qc2 {[%emt 0:00:39]} Qc7 {[%emt 0:05:30]} 63. Nb2 {[%emt 0:00:21]} Be6 {[%emt 0:00:40]} 64. Ned3 {[%emt 0:00:10]} f5 {[%emt 0:00:11]} 65. c4 {[%emt 0:02:25]} fxe4 {[%emt 0:02:12]} 66. fxe4 {[%emt 0:00:01]} Bd6 {[%emt 0:01:40]} 67. c5 {[%emt 0:00:57]} Qc6 {[%emt 0:00:00]} 68. Kf3 {[%emt 0:01:05]} Kf6 {[%emt 0:00:39]} 69. Qc1 {[%emt 0:00:20]} Bg4+ {[%emt 0:00:54]} 70. Ke3 {[%emt 0:00:35]} Bf8 {[%emt 0:00:19]} 71. Qc3 {[%emt 0:01:12]} Bd6 {[%emt 0:01:59]} 72. Kd2 {[%emt 0:01:04]} Bc7 {[%emt 0:00:11]} 73. Ke3 {[%emt 0:01:13]} Bd6 {[%emt 0:00:02]} 74. Qb4 {[%emt 0:00:33]} Bc7 {[%emt 0:00:22]} 75. Nc4 {[%emt 0:00:16]} Qe6 {[%emt 0:01:30]} 76. Qc3 {[%emt 0:00:43]} g5 {[%emt 0:00:16]} 77. hxg5+ {[%emt 0:00:31]} Kxg5 {[%emt 0:00:01]} 78. Qc1 {[%emt 0:01:21]} Kg6 {[%emt 0:00:20]} 79. Qc3 {[%emt 0:00:33]} Kf6 {[%emt 0:00:35]} 80. Nf4 {[%emt 0:00:12]} Qc6 {[%emt 0:01:01]} 81. Nd5+ {[%emt 0:00:16]} Ke6 {[%emt 0:00:01]} 82. Nxc7+ {[%emt 0:00:37]} Qxc7 {[%emt 0:00:01]} 83. Nd6 {[%emt 0:00:30]} Qh7 {[%emt 0:01:12]} 84. Qb3+ {[%emt 0:00:49]} Kf6 {[%emt 0:00:01]} 85. Qd5 {[%emt 0:00:32]} Qh6+ {[%emt 0:01:27]} 86. Kd3 {[%emt 0:00:11]} Be6 {[%emt 0:00:05]} 87. Ne8+ {[%emt 0:00:16]} Ke7 {[%emt 0:00:00]} 88. Qxe5 {[%emt 0:00:25]} Kxe8 {[%emt 0:00:11]} 89. c6 {[%emt 0:00:06]} Kf7 {[%emt 0:00:45]} 90. Qc7+ {[%emt 0:01:00]} 1/2-1/2

[Event "WSTCC-50 2024"]
[Site "Krakow"]
[Date "2024.07.06"]
[Round "5.9"]
[White "Rogowski, Jaroslaw"]
[Black "Jhunjhnuwala, Krishan"]
[Result "0-1"]
[ECO "A48"]
[WhiteElo "2149"]
[BlackElo "2227"]
[Annotator "RC"]
[PlyCount "142"]
[EventDate "2024.07.01"]
[EventType "team-tourn"]
[EventCountry "POL"]
[SourceTitle "playchess.com"]
[Source "ChessBase"]
[SourceQuality "1"]
[TimeControl "40/5400+30:1800+30"]

1. d4 {[%emt 0:00:13]} Nf6 {[%emt 0:00:03]} 2. Nf3 {[%emt 0:00:07]} g6 {[%emt 0:01:13]} 3. c4 {[%emt 0:00:43]} c5 {[%emt 0:00:15]} 4. Nc3 {[%emt 0:01:01]} cxd4 {[%emt 0:01:14]} 5. Nxd4 {[%emt 0:00:11]} Bg7 {[%emt 0:00:21]} 6. e4 {[%emt 0:06:05]} d6 {[%emt 0:00:55]} 7. Be2 {[%emt 0:00:23]} Nc6 {[%emt 0:00:46]} 8. Be3 {[%emt 0:01:58]} O-O {[%emt 0:01:03]} 9. h3 {[%emt 0:05:09]} Bd7 {[%emt 0:01:47]} 10. Nf3 {[%emt 0:08:59]} Qa5 {[%emt 0:10:50]} 11. O-O {[%emt 0:03:25]} Rfc8 {[%emt 0:02:32]} 12. Rc1 {[%emt 0:22:23]} Qd8 {[%emt 0:05:18]} 13. Qd2 {[%emt 0:02:39]} Be8 {[%emt 0:16:35]} 14. Rfd1 {[%emt 0:02:32]} Nd7 {[%emt 0:01:51]} 15. Nh2 {[%emt 0:06:20]} a5 {[%emt 0:03:54]} 16. f4 {[%emt 0:03:32]} a4 {[%emt 0:02:57]} 17. Nb5 {[%emt 0:07:32]} Qa5 {[%emt 0:08:47]} 18. Qxa5 {[%emt 0:01:59]} Rxa5 {[%emt 0:03:00]} 19. Rb1 {[%emt 0:03:40]} Raa8 {[%emt 0:03:11]} 20. Nf1 {[%emt 0:02:41]} Nb4 {[%emt 0:04:33]} 21. a3 {[%emt 0:10:49]} Na6 {[%emt 0:02:32]} 22. Nd2 {[%emt 0:01:39]} Nac5 {[%emt 0:01:11]} 23. Bd4 {[%emt 0:01:47]} Bxd4+ {[%emt 0:02:44]} 24. Nxd4 {[%emt 0:00:01]} Nb8 {[%emt 0:01:46]} 25. g3 {[%emt 0:01:19]} Nc6 {[%emt 0:01:17]} 26. Nb5 {[%emt 0:00:39]} Na5 {[%emt 0:01:49]} 27. Nc3 {[%emt 0:00:28]} e6 {[%emt 0:07:30]} 28. Kf2 {[%emt 0:00:16]} Kf8 {[%emt 0:00:26]} 29. Ke3 {[%emt 0:00:13]} Ra6 {[%emt 0:00:39]} 30. h4 {[%emt 0:00:46]} Rb6 {[%emt 0:00:52]} 31. e5 {[%emt 0:02:44]} dxe5 {[%emt 0:01:08]} 32. fxe5 {[%emt 0:00:02]} Ncb3 {[%emt 0:03:31]} 33. Nxb3 {[%emt 0:01:36]} axb3 {[%emt 0:01:16]} 34. Rd4 {[%emt 0:00:56]} Rbc6 {[%emt 0:03:18]} 35. Rf1 {[%emt 0:01:27]} Rc5 {[%emt 0:01:21]} 36. Kf4 {[%emt 0:01:08]} f6 {[%emt 0:01:54]} 37. Ne4 {[%emt 0:00:51]} Rxe5 {[%emt 0:01:09]} 38. Nxf6 {[%emt 0:00:43]} Rxe2 {[%emt 0:00:38]} 39. Kg5 {[%emt 0:00:20]} Nc6 {[%emt 0:01:58]} 40. Rdf4 {[%emt 0:00:39]} Re5+ {[%emt 0:00:41]} 41. Kh6 {[%emt 0:30:19]} Rf5 {[%emt 0:30:54]} 42. g4 {[%emt 0:00:00]} Rxf4 {[%emt 0:00:00]} 43. Rxf4 {[%emt 0:00:00]} Bf7 {[%emt 0:00:00]} 44. Nxh7+ {[%emt 0:00:00]} Ke7 {[%emt 0:00:00]} 45. Ng5 {[%emt 0:00:00]} Be8 {[%emt 0:00:00]} 46. Re4 {[%emt 0:00:00]} Nd8 {[%emt 0:00:00]} 47. Kg7 {[%emt 0:00:00]} Rc5 {[%emt 0:00:00]} 48. Rd4 {[%emt 0:02:00]} Nc6 {[%emt 0:00:00]} 49. Rd3 {[%emt 0:00:19]} Na5 {[%emt 0:00:00]} 50. Re3 {[%emt 0:00:23]} e5 {[%emt 0:00:00]} 51. Nf3 {[%emt 0:00:55]} Kd6 {[%emt 0:00:00]} 52. Kf6 {[%emt 0:00:26]} Nxc4 {[%emt 0:00:00]} 53. Rxb3 {[%emt 0:00:13]} b5 {[%emt 0:00:00]} 54. Ng5 {[%emt 0:02:02]} Rc8 {[%emt 0:03:47]} 55. Ne4+ {[%emt 0:00:47]} Kd5 {[%emt 0:00:24]} 56. Nc3+ {[%emt 0:00:12]} Kd4 {[%emt 0:00:39]} 57. Nxb5+ {[%emt 0:00:06]} Bxb5 {[%emt 0:00:11]} 58. Rxb5 {[%emt 0:00:02]} Rc6+ {[%emt 0:00:35]} 59. Kg5 {[%emt 0:00:25]} e4 {[%emt 0:00:12]} 60. b3 {[%emt 0:01:47]} Ne5 {[%emt 0:01:32]} 61. Rb4+ {[%emt 0:00:31]} Ke3 {[%emt 0:00:19]} 62. h5 {[%emt 0:00:32]} Nf3+ {[%emt 0:00:54]} 63. Kh6 {[%emt 0:00:08]} gxh5+ {[%emt 0:00:10]} 64. Kxh5 {[%emt 0:00:03]} Rc5+ {[%emt 0:00:04]} 65. Kh6 {[%emt 0:00:10]} Kd3 {[%emt 0:00:25]} 66. Rb8 {[%emt 0:01:27]} e3 {[%emt 0:00:31]} 67. Rd8+ {[%emt 0:00:43]} Kc3 {[%emt 0:00:25]} 68. b4 {[%emt 0:00:17]} Re5 {[%emt 0:00:30]} 69. Rf8 {[%emt 0:00:23]} Nh2 {[%emt 0:00:39]} 70. Rc8+ {[%emt 0:00:54]} Kb2 {[%emt 0:00:16]} 71. b5 {[%emt 0:00:13]} e2 {[%emt 0:00:08]} 0-1

[Event "WSTCC-50 2024"]
[Site "Krakow"]
[Date "2024.07.06"]
[Round "5.9"]
[White "Zeidler, Sven P."]
[Black "Krause, Ullrich"]
[Result "1/2-1/2"]
[ECO "C01"]
[WhiteElo "2116"]
[BlackElo "2171"]
[Annotator "RC"]
[PlyCount "83"]
[EventDate "2024.07.01"]
[EventType "team-tourn"]
[EventCountry "POL"]
[SourceTitle "playchess.com"]
[Source "ChessBase"]
[SourceQuality "1"]
[TimeControl "40/5400+30:1800+30"]

1. e4 {[%emt 0:00:03]} e6 {[%emt 0:00:18]} 2. d4 {[%emt 0:00:05]} d5 {[%emt 0:00:11]} 3. exd5 {[%emt 0:00:06]} exd5 {[%emt 0:00:05]} 4. Nf3 {[%emt 0:00:06]} Nf6 {[%emt 0:00:08]} 5. Bg5 {[%emt 0:00:39]} Be7 {[%emt 0:00:18]} 6. Bd3 {[%emt 0:00:31]} h6 {[%emt 0:00:14]} 7. Bf4 {[%emt 0:01:41]} O-O {[%emt 0:01:20]} 8. O-O {[%emt 0:00:23]} c5 {[%emt 0:02:36]} 9. dxc5 {[%emt 0:20:24]} Bxc5 {[%emt 0:00:09]} 10. Nc3 {[%emt 0:00:13]} Nc6 {[%emt 0:09:32]} 11. a3 {[%emt 0:00:56]} a6 {[%emt 0:00:46]} 12. h3 {[%emt 0:01:01]} Be6 {[%emt 0:09:51]} 13. Qd2 {[%emt 0:02:28]} Re8 {[%emt 0:07:03]} 14. Rfe1 {[%emt 0:04:42]} d4 {[%emt 0:07:04]} 15. Ne4 {[%emt 0:04:03]} Nxe4 {[%emt 0:09:49]} 16. Rxe4 {[%emt 0:03:45]} Qd7 {[%emt 0:11:41]} 17. Rae1 {[%emt 0:07:56]} Bd5 {[%emt 0:01:11]} 18. Rxe8+ {[%emt 0:08:24]} Rxe8 {[%emt 0:00:09]} 19. Rxe8+ {[%emt 0:02:13]} Qxe8 {[%emt 0:00:07]} 20. Qe2 {[%emt 0:00:12]} Qxe2 {[%emt 0:03:10]} 21. Bxe2 {[%emt 0:00:05]} f6 {[%emt 0:11:02]} 22. Nd2 {[%emt 0:01:56]} Kf7 {[%emt 0:01:29]} 23. Bf3 {[%emt 0:05:24]} Ke6 {[%emt 0:01:45]} 24. Kf1 {[%emt 0:10:21]} g5 {[%emt 0:01:51]} 25. Bc7 {[%emt 0:05:21]} Bxf3 {[%emt 0:04:51]} 26. Nxf3 {[%emt 0:00:07]} Kd7 {[%emt 0:00:50]} 27. Bg3 {[%emt 0:00:45]} Bd6 {[%emt 0:00:36]} 28. Bxd6 {[%emt 0:02:31]} Kxd6 {[%emt 0:00:08]} 29. Ke2 {[%emt 0:00:23]} Kd5 {[%emt 0:06:37]} 30. Kd3 {[%emt 0:02:08]} b5 {[%emt 0:00:45]} 31. b4 {[%emt 0:06:03]} h5 {[%emt 0:01:48]} 32. c3 {[%emt 0:02:21]} Ne5+ {[%emt 0:03:13]} 33. Nxe5 {[%emt 0:02:38]} fxe5 {[%emt 0:00:09]} 34. cxd4 {[%emt 0:03:16]} exd4 {[%emt 0:00:08]} 35. Kd2 {[%emt 0:01:29]} h4 {[%emt 0:04:09]} 36. Kd3 {[%emt 0:01:12]} Ke5 {[%emt 0:00:29]} 37. Ke2 {[%emt 0:00:26]} Ke4 {[%emt 0:01:09]} 38. Kd2 {[%emt 0:00:12]} Ke5 {[%emt 0:01:22]} 39. Ke2 {[%emt 0:00:10]} Ke4 {[%emt 0:01:11]} 40. Kd2 {[%emt 0:00:09]} Kf4 {[%emt 0:00:31]} 41. Kd3 {[%emt 0:30:50]} Ke5 {[%emt 0:30:07]} 42. Ke2 {[%emt 0:00:23]} 1/2-1/2

[Event "WSTCC-50 2024"]
[Site "Krakow"]
[Date "2024.07.06"]
[Round "5.10"]
[White "Paschall, William"]
[Black "Dishman, Stephen"]
[Result "1/2-1/2"]
[ECO "A06"]
[WhiteElo "2312"]
[BlackElo "2308"]
[Annotator "RC"]
[PlyCount "132"]
[EventDate "2024.07.01"]
[EventType "team-tourn"]
[EventCountry "POL"]
[SourceTitle "playchess.com"]
[Source "ChessBase"]
[SourceQuality "1"]
[TimeControl "40/5400+30:1800+30"]

1. Nf3 {[%emt 0:00:24]} d5 {[%emt 0:00:06]} 2. g3 {[%emt 0:00:57]} g6 {[%emt 0:00:07]} 3. d4 {[%emt 0:02:51]} c6 {[%emt 0:01:16]} 4. Bg2 {[%emt 0:01:42]} Bg7 {[%emt 0:00:07]} 5. O-O {[%emt 0:02:14]} Nf6 {[%emt 0:00:06]} 6. b3 {[%emt 0:11:52]} O-O {[%emt 0:00:08]} 7. Bb2 {[%emt 0:00:32]} a5 {[%emt 0:00:29]} 8. a4 {[%emt 0:00:56]} Bf5 {[%emt 0:00:41]} 9. Nbd2 {[%emt 0:09:50]} Na6 {[%emt 0:00:53]} 10. Nh4 {[%emt 0:03:17]} Be6 {[%emt 0:06:28]} 11. Nhf3 {[%emt 0:02:29]} Bf5 {[%emt 0:00:57]} 12. Nh4 {[%emt 0:00:33]} Be6 {[%emt 0:00:11]} 13. Re1 {[%emt 0:01:34]} Re8 {[%emt 0:07:31]} 14. Nhf3 {[%emt 0:02:52]} Bf5 {[%emt 0:03:22]} 15. Nh4 {[%emt 0:00:45]} Be6 {[%emt 0:00:13]} 16. Rc1 {[%emt 0:01:55]} h6 {[%emt 0:07:22]} 17. Nhf3 {[%emt 0:03:01]} Bf5 {[%emt 0:02:04]} 18. Nh4 {[%emt 0:01:22]} Be6 {[%emt 0:00:08]} 19. Nhf3 {[%emt 0:05:04]} Bf5 {[%emt 0:00:37]} 20. Ne5 {[%emt 0:01:18]} Nd7 {[%emt 0:06:34]} 21. e4 {[%emt 0:03:40]} dxe4 {[%emt 0:01:03]} 22. Nxe4 {[%emt 0:04:47]} Nxe5 {[%emt 0:04:04]} 23. dxe5 {[%emt 0:01:16]} Qc7 {[%emt 0:08:18]} 24. f4 {[%emt 0:03:44]} Red8 {[%emt 0:00:52]} 25. Qe2 {[%emt 0:01:08]} Qb6+ {[%emt 0:06:11]} 26. Qf2 {[%emt 0:03:42]} Qxf2+ {[%emt 0:01:12]} 27. Kxf2 {[%emt 0:00:49]} Bf8 {[%emt 0:07:56]} 28. Ba3 {[%emt 0:12:52]} Nb4 {[%emt 0:07:46]} 29. Bxb4 {[%emt 0:02:21]} axb4 {[%emt 0:00:02]} 30. Red1 {[%emt 0:01:48]} Bxe4 {[%emt 0:01:22]} 31. Bxe4 {[%emt 0:00:17]} e6 {[%emt 0:00:20]} 32. Ke2 {[%emt 0:00:57]} Bc5 {[%emt 0:00:41]} 33. Rd3 {[%emt 0:03:52]} Kf8 {[%emt 0:01:19]} 34. Kf3 {[%emt 0:01:17]} h5 {[%emt 0:01:22]} 35. Rcd1 {[%emt 0:01:08]} Ke7 {[%emt 0:00:32]} 36. h3 {[%emt 0:00:40]} Rxd3+ {[%emt 0:01:02]} 37. Bxd3 {[%emt 0:01:12]} Rd8 {[%emt 0:00:29]} 38. Re1 {[%emt 0:00:36]} Bd4 {[%emt 0:01:05]} 39. Rh1 {[%emt 0:02:26]} Rh8 {[%emt 0:00:41]} 40. Ke4 {[%emt 0:00:40]} Bf2 {[%emt 0:01:51]} 41. Kf3 {[%emt 0:30:46]} Bd4 {[%emt 0:30:06]} 42. Be4 {[%emt 0:00:41]} Bb6 {[%emt 0:01:17]} 43. Bd3 {[%emt 0:04:38]} Bc5 {[%emt 0:00:31]} 44. Re1 {[%emt 0:00:00]} Rd8 {[%emt 0:00:00]} 45. g4 {[%emt 0:00:00]} hxg4+ {[%emt 0:00:00]} 46. hxg4 {[%emt 0:00:00]} Rh8 {[%emt 0:00:00]} 47. Kg3 {[%emt 0:00:00]} Bd4 {[%emt 0:00:00]} 48. Re4 {[%emt 0:00:00]} c5 {[%emt 0:00:00]} 49. Kg2 {[%emt 0:00:00]} b6 {[%emt 0:00:00]} 50. Re1 {[%emt 0:00:00]} Rh4 {[%emt 0:00:00]} 51. Kg3 {[%emt 0:00:00]} Rh8 {[%emt 0:00:00]} 52. Kg2 {[%emt 0:00:00]} Rh4 {[%emt 0:00:00]} 53. Kg3 {[%emt 0:00:00]} Rh8 {[%emt 0:00:00]} 54. Bc4 {[%emt 0:00:00]} Bc3 {[%emt 0:00:00]} 55. Rd1 {[%emt 0:00:00]} Bd4 {[%emt 0:00:00]} 56. Re1 {[%emt 0:00:00]} Bc3 {[%emt 0:00:00]} 57. Rd1 {[%emt 0:00:00]} Bd4 {[%emt 0:00:00]} 58. Kg2 {[%emt 0:00:00]} g5 {[%emt 0:00:00]} 59. fxg5 {[%emt 0:00:00]} Rg8 {[%emt 0:00:00]} 60. Kf3 {[%emt 0:00:00]} Rxg5 {[%emt 0:00:00]} 61. Kf4 {[%emt 0:00:00]} Rg8 {[%emt 0:00:00]} 62. Rh1 {[%emt 0:00:00]} Bc3 {[%emt 0:00:00]} 63. Rh7 {[%emt 0:02:11]} Bd2+ {[%emt 0:00:00]} 64. Kf3 {[%emt 0:00:18]} Bc3 {[%emt 0:00:00]} 65. Kf4 {[%emt 0:00:42]} Bd2+ {[%emt 0:00:00]} 66. Kf3 {[%emt 0:00:14]} Bc3 {[%emt 0:00:00]} 1/2-1/2